Cogmind - Beta 10.2 @@@ ROGUE MODE // 2020.11.03 @ 10:23:02 // Halloween2020/ForbiddenLore Player: Plexion Result: Destroyed by C-40 Crusher with Compactor Performance ------------- Evolutions (3) 1500 Regions Visited (9) 1800 Robots Destroyed (100) 500 Value Destroyed (2362) 2362 Prototype IDs (29) 580 Alien Tech Used (0) 0 Bonus (724) 724 TOTAL SCORE: 7466 Bonus ------- High Alert Combat Kills 108 Follower Combat Kills 345 Aligned with FarCom 300 Friendly Fire -29 Cogmind --------- Core Integrity 0/700 Matter 91/300 Energy 100/100 System Corruption 52% Temperature Cool (0) Movement Core (50) Location -7/Waste Parts ------- > --- POWER (1) -------- (None) > --- PROPULSION (3) --- (None) > --- UTILITY (7) ------ (None) > --- WEAPON (2) ------- (None) > --- INVENTORY (4) ---- High-capacity Storage Unit Advanced Transmission Jammer Improved Hacking Suite Remote Datajack Peak State ------------ > --- POWER ------------ Deuterium Engine > --- PROPULSION ------- Gravmag System Gravmag Array > --- UTILITY ---------- Lightpack 2.0 Advanced Sensor Array Improved Signal Interpreter Hacking Suite Hacking Suite Hacking Suite > --- WEAPON ----------- Guided Plasma Cannon Great Axe > --- INVENTORY -------- Airjet Gravmag System High-capacity Storage Unit High-capacity Storage Unit High-capacity Storage Unit Improved Target Analyzer Advanced Transmission Jammer Light Armor Plating Improved Hacking Suite Advanced Hacking Suite System Backup Module AS-neutralizer No. 17b Chronowheel Light Assault Rifle Heavy Assault Rifle Improved Assault Rifle Gauss Rifle 8R-AWN's Boregun 8R-AWN's Boregun Advanced EMP Blaster Remote Datajack Plasma Cutter [Rating: 72] Favorites ----------- Power Ion Engine Engine Ion Engine Power Core Light Nuclear Core Propulsion Light Treads Treads Light Treads Leg Aluminum Leg Wheel Armored Wheel Hover Unit Gravmag Array Utility High-capacity Storage Unit Device Advanced Sensor Array Storage High-capacity Storage Unit Processor Improved Signal Interpreter Hackware Hacking Suite Protection Hardened Medium Armor Plating Weapon Autogun Energy Cannon Guided Plasma Cannon Ballistic Gun Autogun Launcher Rocket Launcher Impact Weapon Powered Hammer Slashing Weapon Great Axe Build | -11 -10 -10 -9 -9 -9 -8 -8 -7 -7 ------- Run | Scr Mat Min Mat Min Exi Min Mat Fac Was Slots Evolved 6 | . . . 2 . . . 2 2 . Power . | . . . . . . . . . . Propulsion 1 | . . . 1 . . . . . . Utility 5 | . . . 1 . . . 2 2 . Weapon . | . . . . . . . . . . Parts Attached 105 | 6 8 1 11 3 23 8 21 12 12 Power 6 | 1 . 1 . . 1 1 2 . . Engine 5 | 1 . 1 . . 1 1 1 . . Core 1 | . . . . . . . 1 . . Reactor . | . . . . . . . . . . Propulsion 29 | 2 3 . 5 . 4 4 5 3 3 Treads 12 | 2 . . 5 . 1 . 4 . . Leg 4 | . 1 . . . . 3 . . . Wheel 7 | . 2 . . . 3 1 1 . . Hover 6 | . . . . . . . . 3 3 Flight . | . . . . . . . . . . Utility 28 | 1 3 . 4 3 7 . 4 6 . Device 4 | . . . . 1 1 . 1 1 . Storage 9 | 1 3 . . 1 3 . . 1 . Processor 2 | . . . 1 . . . . 1 . Hackware 3 | . . . . . . . . 3 . Protection 10 | . . . 3 1 3 . 3 . . Artifact . | . . . . . . . . . . Weapon 42 | 2 2 . 2 . 11 3 10 3 9 Energy Gun . | . . . . . . . . . . Energy Cannon 2 | . . . . . 1 . . . 1 Ballistic Gun 32 | 2 2 . 1 . 9 3 8 1 6 Ballistic Cannon . | . . . . . . . . . . Launcher 5 | . . . 1 . 1 . 2 . 1 Special Weapon . | . . . . . . . . . . Impact Weapon 1 | . . . . . . . . 1 . Slashing Weapon 2 | . . . . . . . . 1 1 Piercing Weapon . | . . . . . . . . . . Special Melee Weapon . | . . . . . . . . . . Unidentified Prototypes 6 | . . . . 1 2 . 3 . . Parts Lost 41 | . 3 1 . . 8 7 7 . 15 Power 6 | . . 1 . . 1 1 2 . 1 Propulsion 12 | . 1 . . . 3 3 1 . 4 Utility 8 | . . . . . 1 . 2 . 5 Weapon 15 | . 2 . . . 3 3 2 . 5 Highest Loss Streak 12 | . 3 1 . . 6 7 2 . 12 Average Slot Usage (%) 96 | . 96 100 99 99 97 95 99 82 72 Engine 8 | . 14 14 11 11 9 11 3 7 6 Core 1 | . . . . . . . 5 . . Treads 20 | . 22 . 29 33 25 3 17 . . Leg 2 | . 3 . . . . 19 5 . . Wheel 5 | . 1 28 3 . 7 7 4 . . Hover 1 | . . . . . . . . 14 13 Storage 24 | . 25 28 22 22 26 33 27 7 6 Hackware 2 | . . . . . . . . 21 19 Protection 7 | . . . 8 10 5 . 16 . . Ballistic Gun 19 | . 28 28 21 22 20 19 17 7 1 Naked Turns 15 | . . . . . . . . . 15 Heaviest Build 128 | 12 75 75 83 83 107 106 128 121 29 Greatest Support 60 | 40 40 20 60 60 60 33 60 60 39 Greatest Overweight (x) 10 | . 7 3 3 1 4 8 10 2 . Average Overweight (x) 2 | . . 3 1 . 1 3 6 . . Largest Inventory Capacity 48 | 6 20 20 20 20 28 28 28 48 24 Average Capacity 22 | 5 9 20 20 19 23 28 28 24 23 Most Carried 28 | 4 12 14 20 20 28 27 28 28 22 Average Carried 19 | 2 7 12 17 19 19 23 25 20 20 Final Capacity 28 | 6 20 20 20 20 28 28 28 24 4 Final Carried 27 | 4 12 13 20 20 27 23 27 20 4 Class Distribution -------------------- 81% | Hauler-Mutant 9% | Mutant 8% | Hacker-Mutant Dominant Class ---------------- Mutant | -10/Materials Hauler-Mutant | -10/Mines Hauler-Mutant | -9/Materials Hauler-Mutant | -9/Mines Hauler-Mutant | -9/Exiles Hauler-Mutant | -8/Mines Hauler-Mutant | -8/Materials Hacker-Mutant | -7/Factory Hacker-Mutant | -7/Waste Resources | -11 -10 -10 -9 -9 -9 -8 -8 -7 -7 ----------- Run | Scr Mat Min Mat Min Exi Min Mat Fac Was Matter Collected 3424 | 258 278 111 114 305 844 289 1196 29 . Remotely . | . . . . . . . . . . Salvage Created 3372 | . 577 28 212 33 378 146 1945 53 . Parts 224 | . 38 6 20 4 61 5 84 6 . Haulers Intercepted 4 | . 2 . . . . . 2 . . Recyclers Shooed 4 | . 1 1 . . . . 2 . . Parts Field Recycled . | . . . . . . . . . . Retrieved Matter . | . . . . . . . . . . Parts Self-Destructed . | . . . . . . . . . . Prevented . | . . . . . . . . . . Kills | -11 -10 -10 -9 -9 -9 -8 -8 -7 -7 ------- Run | Scr Mat Min Mat Min Exi Min Mat Fac Was Combat Hostiles Destroyed 65 | . 10 2 8 3 6 3 33 . . Guns 52 | . 10 2 4 3 1 3 29 . . Cannons 1 | . . . . . 1 . . . . AOE 12 | . . . 4 . 4 . 4 . . Classes Destroyed 14 | . 6 . 3 . 3 1 1 . . Worker 6 | . 1 . . . . . 4 1 . Hauler 4 | . 2 . . . . . 2 . . Recycler 4 | . 1 . . . . . 3 . . Operator 3 | . 1 . . . . . 2 . . Turret 1 | . . . . . 1 . . . . Watcher 6 | . . . 1 . . . 4 1 . Swarmer 19 | . 3 2 4 3 . . 7 . . Grunt 31 | . 7 . 2 . . 2 20 . . Brawler 2 | . . . 1 . . . 1 . . Duelist 1 | . . . . . . 1 . . . Sentry 5 | . . . 1 . . . 4 . . Hunter 1 | . . . . . . . 1 . . Zionite 8 | . . . . . 8 . . . . Assembled 5 | . . . . . 5 . . . . Best Kill Streak 8 | . 4 2 6 2 5 3 8 1 . Combat Bots Only 6 | . 4 2 5 2 4 3 6 . . Max Kills in Single Turn 4 | . 1 1 2 2 3 1 4 1 . Gunslinging 1 | . . . . 1 . . . . . Exploded 3 | . . . 2 . 3 . 3 . . Melee . | . . . . . . . . . . Uniques/NPCs Destroyed 5 | . . . . . 4 1 . . . 8R-AWN (-9/Exiles) EX-DEC (-9/Exiles) EX-HEX (-9/Exiles) EX-BIN (-9/Exiles) NK-0LA (-8/Mines) Combat | -11 -10 -10 -9 -9 -9 -8 -8 -7 -7 -------- Run | Scr Mat Min Mat Min Exi Min Mat Fac Was Damage Taken 7078 | . 652 120 222 59 1424 845 2184 . 1572 Core 1377 | . 90 10 31 8 158 163 205 . 712 Absorbed by Shields . | . . . . . . . . . . Core Remaining (%) 58 | 100 . 60 . . . 10 62 . . Volleys Fired 392 | . 57 9 21 6 109 20 157 . 13 Largest 2 | . 2 2 2 2 2 2 2 . 1 Hottest 120 | . 46 46 46 46 120 46 53 . 120 Shots Fired 719 | . 113 18 40 12 186 35 303 . 12 Gun 699 | . 113 18 38 12 179 35 301 . 3 Cannon 12 | . . . . . 4 . . . 8 Launcher 8 | . . . 2 . 3 . 2 . 1 Special . | . . . . . . . . . . Kinetic 699 | . 113 18 38 12 179 35 301 . 3 Thermal 12 | . . . . . 4 . . . 8 Explosive 7 | . . . 2 . 3 . 2 . . Electromagnetic 1 | . . . . . . . . . 1 Robot Hit Streak 18 | . 12 2 9 2 17 7 18 . 6 Robot Miss Streak 6 | . 2 6 2 4 3 2 5 . 1 Penetration Max . | . . . . . . . . . . Secondary Targets 13 | . 4 . 2 1 . 1 5 . . Max Gunslinging Chain 1 | . 1 . 1 1 . 1 1 . . Shots Hit Robots 494 | . 81 6 31 6 129 24 209 2 6 Core Hits 199 | . 27 3 14 4 43 7 89 2 10 Critical Hits 7 | . 3 . . . 2 . 2 . . Critical Kills 1 | . . . . . 1 . . . . Critical Parts Destroyed 5 | . 2 . . . 1 . 2 . . Melee Attacks 10 | . . . . . . . . 7 3 Impact . | . . . . . . . . . . Slashing 10 | . . . . . . . . 7 3 Piercing . | . . . . . . . . . . Sneak Attacks 1 | . . . . . . . . 1 . Combat Hostiles . | . . . . . . . . . . Follow-up Attacks . | . . . . . . . . . . Damage Inflicted 9123 | . 903 136 915 111 2250 396 3952 170 290 Guns 7353 | . 903 136 480 111 1862 396 3424 . 41 Cannons 303 | . . . . . 138 . . . 165 Explosions 1217 | . . . 435 . 250 . 528 . 4 Melee 192 | . . . . . . . . 170 22 Ramming 58 | . . . . . . . . . 58 Kinetic 7353 | . 903 136 480 111 1862 396 3424 . 41 Thermal 303 | . . . . . 138 . . . 165 Explosive 1213 | . . . 435 . 250 . 528 . . Electromagnetic 4 | . . . . . . . . . 4 Impact . | . . . . . . . . . . Slashing 192 | . . . . . . . . 170 22 Piercing . | . . . . . . . . . . Highest Corruption 52 | . 1 1 . . 2 5 . . 52 Average Corruption 4 | . 1 1 . . 1 4 . . 22 Corruption Purged . | . . . . . . . . . . Effects 55 | . 8 1 . . 7 11 . . 28 Message Errors 10 | . 2 . . . 1 4 . . 3 Matter Fused 5 | . . . . . . 2 . . 3 Heat Flow Errors 4 | . . . . . 1 1 . . 2 Energy Discharges 7 | . 2 . . . 1 . . . 4 Parts Rejected 1 | . . . . . . . . . 1 Data Loss (minor) 9 | . 3 1 . . 3 1 . . 1 Data Loss (major) 3 | . . . . . . 1 . . 2 Misfires 2 | . . . . . . 2 . . . Alerts 1 | . . . . . . . . . 1 Misdirections 3 | . . . . . . . . . 3 Targeting Errors 8 | . . . . . 1 . . . 7 Weapon Failures 2 | . 1 . . . . . . . 1 Overload Shots . | . . . . . . . . . . Overflow Damage 33 | . . . . . . . 33 . . Projectiles . | . . . . . . . . . . Explosions 33 | . . . . . . . 33 . . Melee . | . . . . . . . . . . Knockbacks . | . . . . . . . . . . Impact . | . . . . . . . . . . Kinetic . | . . . . . . . . . . Secondary . | . . . . . . . . . . Self-Inflicted Damage 77 | . . . . . . . 31 . 46 Shots 3 | . . . . . . . 2 . 1 Rammed 21 | . . . . . . . . . 21 Targets Rammed 21 | . . . . . . . . . 21 Kicked . | . . . . . . . . . . Crushed . | . . . . . . . . . . Highest Temperature 335 | . 31 21 25 10 222 212 314 . 335 Average Temperature 75 | . 10 7 10 7 52 34 90 . 152 Received Heat Transfer 1524 | . 225 36 84 . . 252 927 . . Effects 4 | . . . . . . . 1 . 3 Energy Bleed 1 | . . . . . . . . . 1 Interference 3 | . . . . . . . 1 . 2 Siege Activations . | . . . . . . . . . . Robots Corrupted . | . . . . . . . . . . Combat Hostiles . | . . . . . . . . . . Parts Fried . | . . . . . . . . . . Impact Corruptions . | . . . . . . . . . . Robots Melted . | . . . . . . . . . . Combat Hostiles . | . . . . . . . . . . Parts Melted . | . . . . . . . . . . Heat Transferred 480 | . . . . . 80 . . . 400 Parts Sabotaged . | . . . . . . . . . . Parts Stolen . | . . . . . . . . . . Parts Stripped . | . . . . . . . . . . Power Chain Reactions . | . . . . . . . . . . Missiles Intercepted . | . . . . . . . . . . Alert | -11 -10 -10 -9 -9 -9 -8 -8 -7 -7 ------- Run | Scr Mat Min Mat Min Exi Min Mat Fac Was Peak Influence 567 | . 224 205 553 289 . 84 567 298 73 Initial 257 | . . 87 79 215 . . . 257 42 Average 187 | . 96 163 305 125 . 54 299 241 48 Maximum Alert Level 2 | . 1 1 2 1 . . 2 1 . Low Security (%) 51 | 100 72 61 14 69 . 100 22 14 100 Level 1 40 | . 27 38 52 30 . . 56 85 . Level 2 8 | . . . 33 . . . 21 . . Level 3 . | . . . . . . . . . . Level 4 . | . . . . . . . . . . Level 5 . | . . . . . . . . . . High Security . | . . . . . . . . . . Max Security . | . . . . . . . . . . Squads Dispatched 11 | . 2 . . . . . 9 . . Investigation 3 | . 1 . . . . . 2 . . Extermination . | . . . . . . . . . . Reinforcement 4 | . 1 . . . . . 3 . . Assault 1 | . . . . . . . 1 . . Garrison 3 | . . . . . . . 3 . . Intercept . | . . . . . . . . . . Construction Impeded . | . . . . . . . . . . Haulers Reinforced . | . . . . . . . . . . Stealth | -11 -10 -10 -9 -9 -9 -8 -8 -7 -7 --------- Run | Scr Mat Min Mat Min Exi Min Mat Fac Was Distress Signals 6 | . 1 . 2 . . . 3 . . Communications Jammed . | . . . . . . . . . . Distress Signals . | . . . . . . . . . . Times Spotted 147 | . 19 5 22 7 23 4 54 2 11 Peak Tracking Total 9 | . 8 3 7 4 9 3 7 1 6 Tactical Retreats 16 | . 1 1 1 . 7 . 3 . 3 Traps | -11 -10 -10 -9 -9 -9 -8 -8 -7 -7 ------- Run | Scr Mat Min Mat Min Exi Min Mat Fac Was Traps Triggered 5 | . 3 . . . . . 1 1 . Indirectly . | . . . . . . . . . . Trap Hack Attempts . | . . . . . . . . . . Triggered . | . . . . . . . . . . Disarmed . | . . . . . . . . . . Reprogrammed . | . . . . . . . . . . Reused . | . . . . . . . . . . Traps Extracted . | . . . . . . . . . . Installed . | . . . . . . . . . . Triggered . | . . . . . . . . . . Exploded 3 | . . . . . 3 . . . . Machines | -11 -10 -10 -9 -9 -9 -8 -8 -7 -7 ---------- Run | Scr Mat Min Mat Min Exi Min Mat Fac Was Machines Disabled 18 | . 1 . 4 . 7 . 6 . . Max in Single Turn 2 | . 1 . 2 . 2 . 1 . . Garrison Access 1 | . . . . . . . . 1 . Machines Sabotaged . | . . . . . . . . . . Garrisons Compromised . | . . . . . . . . . . Overloaded Fab Kills . | . . . . . . . . . . Fab Network Shutdowns . | . . . . . . . . . . Hacking | -11 -10 -10 -9 -9 -9 -8 -8 -7 -7 --------- Run | Scr Mat Min Mat Min Exi Min Mat Fac Was Machines Accessed 9 | . . . . 1 2 . 3 3 . Terminals 4 | . . . . . . . 2 2 . Fabricators . | . . . . . . . . . . Repair Stations . | . . . . . . . . . . Recycling Units . | . . . . . . . . . . Scanalyzers 1 | . . . . . . . 1 . . Garrison Access 1 | . . . . . . . . 1 . Total Hacks 15 | . . . . 1 2 . 8 4 . Successful 10 | . . . . 1 2 . 5 2 . Failed 5 | . . . . . . . 3 2 . Catastrophic 1 | . . . . . . . . 1 . Database Lockouts . | . . . . . . . . . . Manual 6 | . . . . . 1 . 2 3 . Terminals 7 | . . . . . . . 4 3 . Fabricators . | . . . . . . . . . . Repair Stations . | . . . . . . . . . . Recycling Units . | . . . . . . . . . . Scanalyzers 4 | . . . . . . . 4 . . Garrison Access 1 | . . . . . . . . 1 . Terminal Hacks 5 | . . . . 1 2 . 1 1 . Record 1 | . . . . . 1 . . . . Part Schematic 1 | . . . . . . . . 1 . Open Door 1 | . . . . 1 . . . . . Hauler Manifests 1 | . . . . . . . 1 . . EX-Prototype ID Bank 1 | . . . . . 1 . . . . Fabricator Hacks . | . . . . . . . . . . Repair Station Hacks . | . . . . . . . . . . Recycling Unit Hacks . | . . . . . . . . . . Scanalyzer 4 | . . . . . . . 4 . . Insert Component 2 | . . . . . . . 2 . . Analyze 2 | . . . . . . . 2 . . Garrison Access Hacks 1 | . . . . . . . . 1 . Seal Access 1 | . . . . . . . . 1 . Unauthorized Hacks . | . . . . . . . . . . Terminals . | . . . . . . . . . . Fabricators . | . . . . . . . . . . Repair Stations . | . . . . . . . . . . Recycling Units . | . . . . . . . . . . Scanalyzers . | . . . . . . . . . . Garrison Access . | . . . . . . . . . . Data Cores Recovered . | . . . . . . . . . . Used . | . . . . . . . . . . Hacking Detections 3 | . . . . . . . 1 2 . Full Trace Events 1 | . . . . . . . 1 . . Feedback Events . | . . . . . . . . . . Feedback Blocked . | . . . . . . . . . . Robot Schematics Acquired . | . . . . . . . . . . Robots Built . | . . . . . . . . . . Matter . | . . . . . . . . . . Time . | . . . . . . . . . . Total Robot Build Rating . | . . . . . . . . . . Part Schematics Acquired 3 | . . . . . . . 2 1 . Parts Built . | . . . . . . . . . . Matter . | . . . . . . . . . . Time . | . . . . . . . . . . Total Part Build Rating . | . . . . . . . . . . Parts Repaired . | . . . . . . . . . . Time . | . . . . . . . . . . Parts Recycled . | . . . . . . . . . . Recycled Matter . | . . . . . . . . . . Retrieved Matter . | . . . . . . . . . . Retrieved Components . | . . . . . . . . . . Parts Scanalyzed 2 | . . . . . . . 2 . . Part Schematics Acquired 2 | . . . . . . . 2 . . Parts Damaged 1 | . . . . . . . 1 . . Bothacking | -11 -10 -10 -9 -9 -9 -8 -8 -7 -7 ------------ Run | Scr Mat Min Mat Min Exi Min Mat Fac Was Used RIF Installer . | . . . . . . . . . . Robots Hacked . | . . . . . . . . . . Non-combat . | . . . . . . . . . . Combat . | . . . . . . . . . . Robot Hacks Applied . | . . . . . . . . . . Relay Couplers Released . | . . . . . . . . . . Robots Rewired . | . . . . . . . . . . Allies Hacked . | . . . . . . . . . . Hacks Repelled . | . . . . . . . . . . Allies | -11 -10 -10 -9 -9 -9 -8 -8 -7 -7 -------- Run | Scr Mat Min Mat Min Exi Min Mat Fac Was Total Allies 4 | . . 3 . 1 . . . . . Largest Group 3 | . . 3 3 2 1 . . . . Highest-Rated Group 40 | . . 40 40 32 31 . . . . Highest-Rated Ally 31 | . . 16 16 31 31 . . . . Total Orders . | . . . . . . . . . . Ally Attacks 95 | . . 9 58 15 . 13 . . . Total Damage 1515 | . . 116 533 162 . 704 . . . Kills 19 | . . 2 9 4 . 4 . . . Allies Corrupted . | . . . . . . . . . . Allies Melted . | . . . . . . . . . . Turrets Deployed 1 | . . . . . . 1 . . . Intel | -11 -10 -10 -9 -9 -9 -8 -8 -7 -7 ------- Run | Scr Mat Min Mat Min Exi Min Mat Fac Was Robot Analysis Total . | . . . . . . . . . . Derelict Logs Recovered 1 | . . 1 . . . . . . . Drone Launches . | . . . . . . . . . . Drone Recoveries . | . . . . . . . . . . Exploration | -11 -10 -10 -9 -9 -9 -8 -8 -7 -7 ------------- Run | Scr Mat Min Mat Min Exi Min Mat Fac Was Turns Passed 8523 | 71 752 362 396 1300 2561 428 1835 468 350 Spaces Moved 4489 | 39 350 297 176 694 1362 178 677 615 101 Core 3 | 3 . . . . . . . . . Treads 2177 | 36 226 . 154 694 831 . 230 6 . Legs 288 | . 90 . . . . 106 92 . . Wheels 1311 | . 34 297 22 . 531 72 355 . . Hover 710 | . . . . . . . . 609 101 Flight . | . . . . . . . . . . Fastest Speed 50 | 50 110 110 110 160 120 130 180 56 56 Average Speed 150 | 151 162 110 171 179 158 183 198 57 56 Slowest Speed 330 | 160 330 110 220 180 180 330 280 200 56 Overloaded Moves . | . . . . . . . . . . Propulsion Burnouts . | . . . . . . . . . . Robots Hopped . | . . . . . . . . . . Cave-ins Triggered 4 | . . . . . . . . . 4 Exploration Rate (%) 52 | 3 63 71 26 99 90 45 49 20 60 Regions Visited 9 Branch Regions 4 Pre-discovered Areas 2 | . . 1 . . 1 . . . . Known Exits Taken . | . . . . . . . . . . Unknown Exits Taken 8 | 1 1 1 1 1 1 1 1 . . Scrap Searched 1 | . . . . 1 . . . . . Spaces Dug 13 | . . . . . 4 . . 5 4 Terrain Destroyed 88 | . . . 42 . 25 . 12 5 4 Melee 6 | . . . . . . . . 5 1 Projectile 8 | . . . . . 5 . . . 3 AOE 74 | . . . 42 . 20 . 12 . . Terrain Rammed . | . . . . . . . . . . Walls Destroyed . | . . . . . . . . . . Machines Disabled . | . . . . . . . . . . Actions | -11 -10 -10 -9 -9 -9 -8 -8 -7 -7 --------- Run | Scr Mat Min Mat Min Exi Min Mat Fac Was Total 5716 | 48 435 318 244 738 1624 252 959 723 375 Wait 516 | . 9 10 6 22 67 44 68 69 221 Move 4481 | 38 349 296 175 693 1361 177 676 615 101 Hop . | . . . . . . . . . . Pick Up 97 | 4 8 2 15 10 33 1 18 4 2 Fast Attach 35 | 6 4 . 4 2 5 3 5 4 2 Attach 48 | . 2 1 1 1 10 5 12 7 9 Detach 22 | . 2 . 3 . 5 1 7 4 . Swap 22 | . 2 . 6 . 8 . 4 1 1 Drop 70 | . 2 . 13 4 26 1 12 12 . Fire 392 | . 57 9 21 6 109 20 157 . 13 Melee 10 | . . . . . . . . 7 3 Ram 23 | . . . . . . . . . 23 Kick . | . . . . . . . . . . Crush . | . . . . . . . . . . Escape Stasis . | . . . . . . . . . . Rewire . | . . . . . . . . . . Trap . | . . . . . . . . . . Miscellaneous . | . . . . . . . . . . Route ------- -11/Scrapyard -10/Materials (discovered 3 exits: [*Mat] / [*Min x2]) -10/Mines -9/Materials -9/Mines (discovered 3 exits: *Mat x2 / *Exi) -9/Exiles -8/Mines -8/Materials -7/Factory -7/Waste History --------- Turn | Location | Event 46 | -11/Scrapyard | Discovered new exit (range 15) 72 | -11/Scrapyard | Entered Materials 177 | -10/Materials | Discovered new exit (range 15) 307 | -10/Materials | Build established: Mutant 401 | -10/Materials | Discovered new exit (range 16) 587 | -10/Materials | Lost 3 parts (1n2w) 803 | -10/Materials | Discovered new exit (range 5) 824 | -10/Materials | Entered Mines 962 | -10/Mines | Assisted by bots powering up and referring to "LRC-V3" 997 | -10/Mines | Received a Rocket Launcher from a helpful Derelict 1036 | -10/Mines | Build established: Hauler-Mutant 1049 | -10/Mines | Discovered new exit (range 12) 1186 | -10/Mines | Entered Materials 1186 | -9/Materials | Accompanied by 3 allies 1186 | -9/Materials | Evolved 2 slots: Propulsion x1, Utility x1 1530 | -9/Materials | Discovered new exit (range 12) 1582 | -9/Materials | Entered Mines 1582 | -9/Mines | Accompanied by 3 allies 1633 | -9/Mines | Found the Drone Emporium 1642 | -9/Mines | Found Prototype Device 1642 | -9/Mines | Identified Decoy Drone Bay 1792 | -9/Mines | Assembled infested the area 1797 | -9/Mines | Assisted by a Guerilla fighting off Assembled 2005 | -9/Mines | Discovered new exit (range 7) 2693 | -9/Mines | Discovered new exit (range 5) 2696 | -9/Mines | Received a Mining Laser from a helpful Derelict 2875 | -9/Mines | Deemed a non-threat by the Exiles lab entrance 2875 | -9/Mines | Discovered new exit (range 5) 2882 | -9/Mines | Entered Exiles 2882 | -9/Exiles | Accompanied by 1 ally 2927 | -9/Exiles | Met 8R-AWN 2956 | -9/Exiles | Met EX-HEX 3007 | -9/Exiles | Met EX-BIN 3028 | -9/Exiles | Met EX-DEC 3037 | -9/Exiles | Learned location of Zion (-7) 3661 | -9/Exiles | Aligned with FarCom system 3663 | -9/Exiles | Given EX-Vault access code 3713 | -9/Exiles | Opened EX-Vault 3728 | -9/Exiles | Found Gui. Plasma Cannon 3732 | -9/Exiles | Found Lightpack 2.0 3737 | -9/Exiles | Found Chronowheel 3774 | -9/Exiles | Warned to stay clear of 0b10 Research branches 3929 | -9/Exiles | Discovered new exit (range 15) 4381 | -9/Exiles | Attacked by the Exiles 4553 | -9/Exiles | Lost 6 parts (1p2n3w) 4599 | -9/Exiles | Destroyed 8R-AWN 4610 | -9/Exiles | Found Prototype Ballistic Gun 4610 | -9/Exiles | Identified 8R-AWN's Boregun 4614 | -9/Exiles | Found 8R-AWN's Boregun 4618 | -9/Exiles | Found Prototype Device 4618 | -9/Exiles | Identified AS-neutralizer No. 17b 4873 | -9/Exiles | Destroyed EX-DEC 4911 | -9/Exiles | Destroyed EX-HEX 4919 | -9/Exiles | Destroyed EX-BIN 5304 | -9/Exiles | Found Deploy-a-Sentry 5443 | -9/Exiles | Stole four prototypes: Lightpack 2.0, Chronowheel, Gui. Plasma Cannon, Deploy-a-Sentry 5443 | -9/Exiles | Entered Mines 5450 | -8/Mines | DAS Turret deployed 5494 | -8/Mines | NK-0LA came to Exiles' defense 5495 | -8/Mines | Core integrity fell below 50% 5505 | -8/Mines | Allies destroyed NK-0LA 5584 | -8/Mines | Core integrity fell below 20% 5626 | -8/Mines | Lost 7 parts (1p3n3w) 5854 | -8/Mines | Discovered new exit (range 10) 5871 | -8/Mines | Entered Materials 5871 | -8/Materials | Evolved 2 slots: Utility x2 7008 | -8/Materials | Garrison activated, responded to threat 7471 | -8/Materials | First assault squad dispatched 7573 | -8/Materials | Discovered new exit (range 15) 7706 | -8/Materials | Entered Factory 7706 | -7/Factory | Evolved 2 slots: Utility x2 7787 | -7/Factory | Discovered new exit (range 4) 8025 | -7/Factory | Build established: Hacker-Mutant 8174 | -7/Factory | Sucked down chute 8174 | -7/Factory | Entered Waste 8180 | -7/Waste | Spotted C-40 Crusher 8189 | -7/Waste | EMP discharged 8189 | -7/Waste | System corruption reached 10% 8189 | -7/Waste | Spotted C-40 Crusher 8199 | -7/Waste | Spotted C-40 Crusher 8201 | -7/Waste | Spotted C-40 Crusher 8232 | -7/Waste | Spotted C-40 Crusher 8289 | -7/Waste | EMP discharged 8389 | -7/Waste | EMP discharged 8432 | -7/Waste | Crushed by falling debris 8432 | -7/Waste | System corruption reached 30% 8463 | -7/Waste | Lost 3 parts (1n2u) 8473 | -7/Waste | Crushed by falling debris 8473 | -7/Waste | Crushed by Compactor (1 part destroyed) 8476 | -7/Waste | Crushed by Compactor (1 part destroyed, 1 dropped) 8479 | -7/Waste | Crushed by Compactor (1 part destroyed, 1 dropped) 8482 | -7/Waste | Crushed by Compactor (0 parts destroyed, 1 dropped) 8485 | -7/Waste | Crushed by Compactor (1 part destroyed) 8488 | -7/Waste | Crushed by Compactor (1 part destroyed, 1 dropped) 8489 | -7/Waste | EMP discharged 8491 | -7/Waste | Crushed by Compactor (1 part destroyed, 1 dropped) 8494 | -7/Waste | Crushed by Compactor (0 parts destroyed, 1 dropped) 8497 | -7/Waste | Crushed by Compactor (1 part destroyed) 8500 | -7/Waste | Crushed by Compactor (1 part destroyed) 8510 | -7/Waste | Crushed by falling debris 8510 | -7/Waste | Core integrity fell below 50% 8518 | -7/Waste | Crushed by falling debris 8518 | -7/Waste | Core integrity fell below 20% 8524 | -7/Waste | Destroyed by C-40 Crusher with Compactor Last Messages --------------- 08497_ Lgt. Assault Rifle crushed. 08500_ System corrupted: Adv. EMP Blaster targeting data glitched. 08500_ Adv. EMP Blaster crushed. 08502_ Slammed into C-40 Crusher. 08509_ System corrupted: Substantial component data lost. 08509_ Slammed into C-40 Crusher. 08509_ Lightpack 2.0 destroyed. 08510_ The unstable cave ceiling collapses. 08510_ Crushed by falling debris. 08510_ System Backup Module crushed. 08510_ Plasma Cutter crushed. 08510_ Chronowheel crushed. 08511_ Slammed into C-40 Crusher. 08512_ Hcp. Storage Unit crushed. 08512_ Lgt. Armor Plating crushed. 08512_ Imp. Target Analyzer crushed. 08513_ Slammed into C-40 Crusher. 08518_ The unstable cave ceiling collapses. 08518_ Crushed by falling debris. 08518_ Slammed into C-40 Crusher. Map ----- +----------------------------------------------------+ | ??? #??????# #????????????????? | | ??? #??????# #????????????????? | | ??? #??????# #????????????????? | | ???# #??????# ######## #????????????????? | | #??# #??????# #??????#] #????????????????? | | #??# #??????# #??????# #????????????????? | | #??# #??????# #??????# #????????? ??????? | | #### #??????# #??????# ######## #????? | | #??????#! #??????# ????? | | #??????# #??????# ????? | | #??????# #??????# ????? | | #??????# #??????# ????? | | #### #??????# #??????# ######## #????? | | #??# #??????# #??????# #????????? ??????? | | #??#! #??????# #??????# #????????????????? | | #??# #??????# #??????# #????????????????? | | ?### ######## ######## #????????????????? | | ?# #????????????????? | | ?# ! #????????????????? | | ?# #????????????????? | | ?# #????????????????? | | ?### ######## ######## #????????????????? | | ???# #??????# #???#### #????????????????? | | ???# #??????# #??##### #????????????????? | | ???# #??????# #??##### #????????????????? | | ???# #??????# #??##@## ###??????????????? | | ???######??????######???##CC #??????????????? | | ?????????????????????????#CCCC #??????????????? | | ?????????????????????????# CCC #??????????????? | | ?????????????????????????# C #??????????????? | | ?????????????????????????# #??????????????? | | ?????????????????????????# #??????????????? | | ?????????????????????????# #??????????????? | | ?????????????????????????# #??????????????? | | ?????????????????????????##########??????????????? | | ?????????????????????????????????????????????????? | | ?????????????????????????????????????????????????? | | ?????????????????????????????????????????????????? | | ?????????????????????????????????????????????????? | | ?????????????????????????????????????????????????? | | ?????????????????????????????????????????????????? | | ?????????????????????????????????????????????????? | | ?????????????????????????????????????????????????? | | ?????????????????????????????????????????????????? | | ?????????????????????????????????????????????????? | | ?????????????????????????????????????????????????? | | ?????????????????????????????????????????????????? | | ?????????????????????????????????????????????????? | | ?????????????????????????????????????????????????? | | ?????????????????????????????????????????????????? | +----------------------------------------------------+ Best States ------------- Heat Dissipation 34 Energy Generation 15 Energy Capacity 275 Matter Stores 300 Matter Capacity 300 Sight Range 16 Robot Scan Range 16 Terrain Scan Density 10 Armor Coverage 450 Weapon Cycling 25 Evasion (%) 53 Targeting Accuracy 6 Recoil Reduction 3 Offensive Hacking 30 Item Schematics ----------------- Hacking Suite | -8/Materials | Scanalyzed Adv. EMP Blaster | -8/Materials | Scanalyzed Lrn. Sensor Array | -7/Factory | Hacked Robot Schematics ------------------ None Fabricated ------------ Nothing Alien Tech Used ----------------- None Achievements -------------- Z1$+NX3F=JRE3_ZNQR Challenges ------------ None Game ------ Seed SalvageMobileBlade Manual? 0 Play Time 01:03:58 Cumulative 124.0 hours Start 2020.11.02 @ 22:56:39 End 2020.11.03 @ 10:23:02 Sessions 3 Manual Loads 0 Difficulty Rogue Special Mode Halloween2020/ForbiddenLore Game No. 156 Rogue 69 Adventurer 87 Explorer 0 Win Type - Total 4 Types 3/0/0/1/0/0/0/0/0 Lore% 54 Gallery% 65 Achievement% 55 Wizard Run 0 Options --------- ASCII 0 Keyboard 1 Movement Numpad Keybinds 0 Fullscreen 1 Font 18/Smallcaps Map View 76x50 Tactical HUD 1 Map Filters NONE Filters NONE Steam 1 RUN: 890d06c7-cf78-4438-8224-5cdd5c3526c2